[Event "*** Biggest EVER Titled Tuesday"]
[Site "Chess.com"]
[Date "2018.04.17"]
[Round "1"]
[White "chesssharkattack"]
[Black "Zhuu96"]
[Result "0-1"]
[WhiteElo "2378"]
[BlackElo "2721"]
[TimeControl "180+2"]
[EndTime "13:06:44 PDT"]
[Termination "Zhuu96 won by resignation"]

1. e4 {[%clk 0:02:55]} 1... c5 {[%clk 0:02:58.8]} 2. Nf3 {[%clk 0:02:54.1]} 2...
e6 {[%clk 0:03:00.3]} 3. c4 {[%clk 0:02:54.7]} 3... b6 {[%clk 0:02:57.1]} 4. Nc3
{[%clk 0:02:55.5]} 4... Bb7 {[%clk 0:02:58.6]} 5. d4 {[%clk 0:02:57]} 5... cxd4
{[%clk 0:02:59.6]} 6. Nxd4 {[%clk 0:02:58.9]} 6... a6 {[%clk 0:03:01.1]} 7. Be2
{[%clk 0:02:57.1]} 7... Nf6 {[%clk 0:03:02.6]} 8. Bf3 {[%clk 0:02:31.9]} 8...
Qc7 {[%clk 0:03:02.2]} 9. Qe2 {[%clk 0:02:27.9]} 9... Bc5 {[%clk 0:02:54.4]} 10.
Be3 {[%clk 0:02:24.5]} 10... O-O {[%clk 0:02:52]} 11. O-O {[%clk 0:02:24.1]}
11... Nc6 {[%clk 0:02:48.2]} 12. Nxc6 {[%clk 0:02:23.6]} 12... Bxc6 {[%clk
0:02:46.3]} 13. Bxc5 {[%clk 0:02:24.2]} 13... bxc5 {[%clk 0:02:47.2]} 14. Rad1
{[%clk 0:02:22.2]} 14... d6 {[%clk 0:02:45.4]} 15. Rfe1 {[%clk 0:02:21.9]} 15...
Rfd8 {[%clk 0:02:39.6]} 16. Rd2 {[%clk 0:02:05.4]} 16... Rab8 {[%clk 0:02:38.1]}
17. Red1 {[%clk 0:02:05.9]} 17... a5 {[%clk 0:02:34.3]} 18. g4 {[%clk
0:01:41.4]} 18... a4 {[%clk 0:02:31.1]} 19. g5 {[%clk 0:01:42.3]} 19... Ne8
{[%clk 0:02:31.5]} 20. e5 {[%clk 0:01:36.9]} 20... Bxf3 {[%clk 0:02:30.1]} 21.
Qxf3 {[%clk 0:01:38.6]} 21... dxe5 {[%clk 0:02:31]} 22. Rxd8 {[%clk 0:01:40.4]}
22... Rxd8 {[%clk 0:02:31.5]} 23. Rxd8 {[%clk 0:01:41.5]} 23... Qxd8 {[%clk
0:02:32.7]} 24. Nxa4 {[%clk 0:01:37.1]} 24... Qxg5+ {[%clk 0:02:32.8]} 25. Qg3
{[%clk 0:01:36.7]} 25... Qc1+ {[%clk 0:02:33.6]} 26. Kg2 {[%clk 0:01:36.6]}
26... Qxc4 {[%clk 0:02:35.1]} 27. b3 {[%clk 0:01:35.8]} 27... Qd5+ {[%clk
0:02:30.9]} 28. Qf3 {[%clk 0:01:34.5]} 28... e4 {[%clk 0:02:27.9]} 29. Qe3
{[%clk 0:01:33.8]} 29... h6 {[%clk 0:02:20.2]} 30. Nc3 {[%clk 0:00:52.4]} 30...
Qa8 {[%clk 0:02:19.8]} 31. Qxe4 {[%clk 0:00:53.2]} 31... Qd8 {[%clk 0:02:19.9]}
32. Qe3 {[%clk 0:00:48.4]} 32... Qa5 {[%clk 0:02:15.8]} 33. Na4 {[%clk
0:00:47.5]} 33... c4 {[%clk 0:02:16.2]} 34. Qc5 {[%clk 0:00:41]} 34... Qa8+
{[%clk 0:02:15.6]} 35. f3 {[%clk 0:00:41.6]} 35... cxb3 {[%clk 0:02:16]} 36.
axb3 {[%clk 0:00:43.5]} 36... Nf6 {[%clk 0:02:16.7]} 37. Kf2 {[%clk 0:00:35.6]}
37... Qb8 {[%clk 0:02:16.6]} 38. b4 {[%clk 0:00:30.5]} 38... Qxh2+ {[%clk
0:02:17.1]} 39. Ke3 {[%clk 0:00:32]} 39... Nd5+ {[%clk 0:02:16]} 40. Kd3 {[%clk
0:00:29.7]} 40... Qf4 {[%clk 0:02:17]} 41. Qd4 {[%clk 0:00:15.2]} 41... Nxb4+
{[%clk 0:02:11.9]} 0-1

[Event "*** Biggest EVER Titled Tuesday"]
[Site "Chess.com"]
[Date "2018.04.17"]
[Round "1"]
[White "Sanan_Sjugirov"]
[Black "PchelkinVK"]
[Result "1-0"]
[WhiteElo "2813"]
[BlackElo "2418"]
[TimeControl "180+2"]
[EndTime "13:06:55 PDT"]
[Termination "Sanan_Sjugirov won by resignation"]

1. e4 {[%clk 0:02:59.9]} 1... e6 {[%clk 0:02:47.6]} 2. d4 {[%clk 0:02:59.6]}
2... d5 {[%clk 0:02:40.8]} 3. Nd2 {[%clk 0:03:00.1]} 3... c5 {[%clk 0:02:40.2]}
4. exd5 {[%clk 0:02:56.4]} 4... Qxd5 {[%clk 0:02:40.4]} 5. Ngf3 {[%clk
0:02:57.5]} 5... cxd4 {[%clk 0:02:41.6]} 6. Bc4 {[%clk 0:02:58.5]} 6... Qd6
{[%clk 0:02:42.3]} 7. O-O {[%clk 0:02:59.3]} 7... Nf6 {[%clk 0:02:43.7]} 8. Nb3
{[%clk 0:03:00.4]} 8... Nc6 {[%clk 0:02:45.1]} 9. Nbxd4 {[%clk 0:03:01.5]} 9...
Nxd4 {[%clk 0:02:47]} 10. Nxd4 {[%clk 0:03:02.9]} 10... Bd7 {[%clk 0:02:48.3]}
11. c3 {[%clk 0:02:49.9]} 11... Qc7 {[%clk 0:02:47.2]} 12. Qe2 {[%clk
0:02:48.7]} 12... O-O-O {[%clk 0:02:42.9]} 13. a4 {[%clk 0:02:45.7]} 13... h5
{[%clk 0:02:41.4]} 14. Nb5 {[%clk 0:01:48.8]} 14... Bxb5 {[%clk 0:02:39.4]} 15.
axb5 {[%clk 0:01:50.7]} 15... Bc5 {[%clk 0:01:39.8]} 16. g3 {[%clk 0:01:41.6]}
16... Ng4 {[%clk 0:01:16.7]} 17. Kg2 {[%clk 0:01:36.4]} 17... Kb8 {[%clk
0:00:59.5]} 18. h3 {[%clk 0:01:16.5]} 18... Ne5 {[%clk 0:00:52.1]} 19. Bf4
{[%clk 0:01:03.3]} 19... Bd6 {[%clk 0:00:52.6]} 20. Bb3 {[%clk 0:00:58.8]} 20...
Nd7 {[%clk 0:00:39.9]} 21. Be3 {[%clk 0:00:49]} 21... Bc5 {[%clk 0:00:39.1]} 22.
Rfd1 {[%clk 0:00:34.3]} 22... Qe5 {[%clk 0:00:34.3]} 23. Bf4 {[%clk 0:00:33.3]}
1-0

[Event "*** Biggest EVER Titled Tuesday"]
[Site "Chess.com"]
[Date "2018.04.17"]
[Round "1"]
[White "Vahe_Dan1"]
[Black "josephymwale33"]
[Result "1-0"]
[WhiteElo "2512"]
[BlackElo "2146"]
[TimeControl "180+2"]
[EndTime "13:07:04 PDT"]
[Termination "Vahe_Dan1 won by resignation"]

1. e4 {[%clk 0:03:01.1]} 1... e6 {[%clk 0:03:00.4]} 2. d4 {[%clk 0:03:01.1]}
2... d5 {[%clk 0:03:01.8]} 3. Nc3 {[%clk 0:03:02.6]} 3... Nf6 {[%clk 0:03:02.3]}
4. Bg5 {[%clk 0:03:01.9]} 4... Be7 {[%clk 0:03:02.9]} 5. e5 {[%clk 0:03:01.6]}
5... Nfd7 {[%clk 0:03:04.2]} 6. h4 {[%clk 0:03:01]} 6... O-O {[%clk 0:03:05.3]}
7. Bxe7 {[%clk 0:02:52.8]} 7... Qxe7 {[%clk 0:03:05.8]} 8. f4 {[%clk 0:02:54.7]}
8... c5 {[%clk 0:03:06.8]} 9. Nf3 {[%clk 0:02:55.1]} 9... Nc6 {[%clk 0:03:07.6]}
10. Qd2 {[%clk 0:02:48]} 10... f6 {[%clk 0:03:07.6]} 11. O-O-O {[%clk 0:02:30]}
11... cxd4 {[%clk 0:03:07.3]} 12. Nxd4 {[%clk 0:02:27.4]} 12... fxe5 {[%clk
0:03:07.2]} 13. fxe5 {[%clk 0:02:24.5]} 13... Ndxe5 {[%clk 0:03:04.4]} 14. Be2
{[%clk 0:02:16.5]} 14... Nxd4 {[%clk 0:02:50.8]} 15. Qxd4 {[%clk 0:02:18.4]}
15... Nc6 {[%clk 0:02:52.7]} 16. Qg4 {[%clk 0:02:08.8]} 16... e5 {[%clk
0:02:51.7]} 17. Nxd5 {[%clk 0:02:08.8]} 17... Qc5 {[%clk 0:02:37.8]} 18. Qc4
{[%clk 0:02:02.7]} 18... Qxc4 {[%clk 0:02:33.6]} 19. Bxc4 {[%clk 0:02:04.6]}
19... Kh8 {[%clk 0:02:32.3]} 20. a3 {[%clk 0:02:03.4]} 20... Bf5 {[%clk
0:02:31.8]} 21. Ne3 {[%clk 0:01:54.1]} 21... Be4 {[%clk 0:02:28]} 22. Bd5 {[%clk
0:01:54.9]} 22... Bxd5 {[%clk 0:02:21]} 23. Rxd5 {[%clk 0:01:53.1]} 23... Rac8
{[%clk 0:02:22]} 24. Rd7 {[%clk 0:01:44.5]} 24... Rf2 {[%clk 0:02:22.5]} 25.
Rxb7 {[%clk 0:01:38.4]} 25... Re2 {[%clk 0:02:16.3]} 26. Rh3 {[%clk 0:01:23.4]}
26... Nd4 {[%clk 0:02:14.9]} 27. Kb1 {[%clk 0:01:23.7]} 27... h6 {[%clk
0:02:13]} 28. c3 {[%clk 0:01:22.2]} 28... Re1+ {[%clk 0:02:13.2]} 29. Ka2 {[%clk
0:01:21.3]} 29... Ne2 {[%clk 0:02:15.1]} 30. Nd5 {[%clk 0:01:12.5]} 30... Nc1+
{[%clk 0:02:14.9]} 31. Kb1 {[%clk 0:01:13.6]} 31... Rd8 {[%clk 0:02:09.3]} 32.
c4 {[%clk 0:01:07.2]} 32... Rf8 {[%clk 0:02:06.5]} 33. a4 {[%clk 0:00:59]} 33...
Rf2 {[%clk 0:02:05.3]} 34. Rf3 {[%clk 0:00:51.8]} 34... Rxg2 {[%clk 0:02:02.8]}
35. Rf8+ {[%clk 0:00:45]} 35... Kh7 {[%clk 0:02:03.7]} 36. h5 {[%clk 0:00:46.9]}
36... Nb3+ {[%clk 0:01:40.5]} 37. Ka2 {[%clk 0:00:47.8]} 37... Nc1+ {[%clk
0:01:38.3]} 38. Ka3 {[%clk 0:00:44.4]} 38... Rg3+ {[%clk 0:01:38.8]} 39. b3
{[%clk 0:00:42.6]} 39... Rf1 {[%clk 0:01:33]} 40. Rxf1 {[%clk 0:00:39.7]} 1-0

[Event "*** Biggest EVER Titled Tuesday"]
[Site "Chess.com"]
[Date "2018.04.17"]
[Round "1"]
[White "severomorskij"]
[Black "Manukyan_Artak"]
[Result "1-0"]
[WhiteElo "2661"]
[BlackElo "2345"]
[TimeControl "180+2"]
[EndTime "13:07:06 PDT"]
[Termination "severomorskij won by resignation"]

1. d4 {[%clk 0:03:01.9]} 1... d5 {[%clk 0:03:00.8]} 2. c4 {[%clk 0:03:02.5]}
2... dxc4 {[%clk 0:03:01.4]} 3. e3 {[%clk 0:03:02.6]} 3... e5 {[%clk 0:03:01.9]}
4. Bxc4 {[%clk 0:03:03.5]} 4... exd4 {[%clk 0:03:03]} 5. exd4 {[%clk 0:03:04.8]}
5... Nf6 {[%clk 0:03:04.3]} 6. Nf3 {[%clk 0:03:05.6]} 6... Be7 {[%clk
0:03:02.5]} 7. O-O {[%clk 0:03:04.8]} 7... O-O {[%clk 0:03:03.6]} 8. h3 {[%clk
0:02:50.7]} 8... c5 {[%clk 0:02:59.2]} 9. dxc5 {[%clk 0:02:26.8]} 9... Qxd1
{[%clk 0:02:55.7]} 10. Rxd1 {[%clk 0:02:27.4]} 10... Bxc5 {[%clk 0:02:57.6]} 11.
Nc3 {[%clk 0:02:25.8]} 11... Nc6 {[%clk 0:02:57.2]} 12. Bg5 {[%clk 0:02:25.3]}
12... a6 {[%clk 0:02:45.1]} 13. Bxf6 {[%clk 0:02:23.9]} 13... gxf6 {[%clk
0:02:46]} 14. Ne4 {[%clk 0:02:04.6]} 14... Be7 {[%clk 0:02:44.2]} 15. Bd5 {[%clk
0:01:59.8]} 15... Rd8 {[%clk 0:02:36.8]} 16. Bxc6 {[%clk 0:01:54.6]} 16... bxc6
{[%clk 0:02:33.7]} 17. Rxd8+ {[%clk 0:01:54.7]} 17... Bxd8 {[%clk 0:02:34.8]}
18. Rd1 {[%clk 0:01:56]} 18... Be6 {[%clk 0:02:25.7]} 19. Nd4 {[%clk 0:01:41.2]}
19... Bd5 {[%clk 0:02:18.4]} 20. Nc3 {[%clk 0:01:40.6]} 20... Rb8 {[%clk
0:01:22.7]} 21. Nxd5 {[%clk 0:01:31.5]} 21... cxd5 {[%clk 0:01:23.8]} 22. Nc6
{[%clk 0:01:29]} 22... Rc8 {[%clk 0:01:21.4]} 23. Rxd5 {[%clk 0:01:28.8]} 23...
Rxc6 {[%clk 0:01:22.5]} 24. Rxd8+ {[%clk 0:01:29.4]} 24... Kg7 {[%clk
0:01:24.4]} 25. Rd2 {[%clk 0:01:29.1]} 25... f5 {[%clk 0:01:24.4]} 26. Kf1
{[%clk 0:01:28.4]} 26... h5 {[%clk 0:01:20.5]} 27. Ke2 {[%clk 0:01:28.2]} 27...
Kg6 {[%clk 0:01:16.8]} 28. Kd3 {[%clk 0:01:28.5]} 28... h4 {[%clk 0:01:07.3]}
29. b4 {[%clk 0:01:27.2]} 29... Rc1 {[%clk 0:01:05.3]} 30. Rb2 {[%clk
0:01:22.9]} 30... Rg1 {[%clk 0:01:02.2]} 31. f4 {[%clk 0:01:13.2]} 31... Re1
{[%clk 0:00:54.3]} 32. a4 {[%clk 0:01:11.6]} 32... Re4 {[%clk 0:00:52.1]} 33. b5
{[%clk 0:01:11.4]} 33... axb5 {[%clk 0:00:38.4]} 34. axb5 {[%clk 0:01:12.3]}
34... Re7 {[%clk 0:00:33]} 35. b6 {[%clk 0:01:12.5]} 35... Rb7 {[%clk
0:00:33.8]} 36. Kc4 {[%clk 0:01:12.8]} 36... Kf6 {[%clk 0:00:34.8]} 37. Kd5
{[%clk 0:01:13.5]} 37... Rd7+ {[%clk 0:00:35.3]} 38. Kc6 {[%clk 0:01:14.1]}
38... Rd2 {[%clk 0:00:36.2]} 39. Rxd2 {[%clk 0:01:14.4]} 1-0

[Event "*** Biggest EVER Titled Tuesday"]
[Site "Chess.com"]
[Date "2018.04.17"]
[Round "1"]
[White "jlandaw"]
[Black "mishanick"]
[Result "0-1"]
[WhiteElo "2421"]
[BlackElo "2836"]
[TimeControl "180+2"]
[EndTime "13:07:09 PDT"]
[Termination "mishanick won by checkmate"]

1. e4 {[%clk 0:03:01.9]} 1... c5 {[%clk 0:02:37.4]} 2. Nc3 {[%clk 0:03:01.7]}
2... d6 {[%clk 0:02:38.9]} 3. g3 {[%clk 0:03:02.9]} 3... g6 {[%clk 0:02:40.2]}
4. Bg2 {[%clk 0:03:03.5]} 4... Bg7 {[%clk 0:02:40.9]} 5. d3 {[%clk 0:03:03.9]}
5... Nc6 {[%clk 0:02:42.1]} 6. f4 {[%clk 0:03:04.5]} 6... e6 {[%clk 0:02:43.5]}
7. Nf3 {[%clk 0:03:05.4]} 7... Nge7 {[%clk 0:02:45]} 8. O-O {[%clk 0:03:06.7]}
8... Rb8 {[%clk 0:02:46.2]} 9. a3 {[%clk 0:03:02.5]} 9... b5 {[%clk 0:02:47.4]}
10. Rb1 {[%clk 0:03:03.5]} 10... a5 {[%clk 0:02:47.5]} 11. a4 {[%clk 0:03:04.4]}
11... b4 {[%clk 0:02:37.1]} 12. Nb5 {[%clk 0:03:05.4]} 12... Ba6 {[%clk
0:02:37]} 13. c4 {[%clk 0:02:56.1]} 13... O-O {[%clk 0:02:26.9]} 14. Be3 {[%clk
0:02:37.6]} 14... Qb6 {[%clk 0:02:16.8]} 15. Nxd6 {[%clk 0:02:24.6]} 15... Nd4
{[%clk 0:02:17.3]} 16. Nb5 {[%clk 0:02:05.9]} 16... Nec6 {[%clk 0:02:16.6]} 17.
Nfxd4 {[%clk 0:01:57.9]} 17... cxd4 {[%clk 0:02:18.5]} 18. Bf2 {[%clk
0:01:58.6]} 18... e5 {[%clk 0:02:19]} 19. h4 {[%clk 0:01:48.9]} 19... exf4
{[%clk 0:02:19.2]} 20. gxf4 {[%clk 0:01:47.5]} 20... Ne7 {[%clk 0:02:19.7]} 21.
h5 {[%clk 0:01:46.1]} 21... Rfd8 {[%clk 0:02:17]} 22. hxg6 {[%clk 0:01:39.7]}
22... hxg6 {[%clk 0:02:17.4]} 23. Qg4 {[%clk 0:01:40.6]} 23... f5 {[%clk
0:02:15.1]} 24. Qh3 {[%clk 0:01:37.8]} 24... Bb7 {[%clk 0:02:11]} 25. Rbe1
{[%clk 0:01:37.8]} 25... Kf7 {[%clk 0:02:09.9]} 26. e5 {[%clk 0:01:33.1]} 26...
Rh8 {[%clk 0:02:05.4]} 27. Qg3 {[%clk 0:01:24.4]} 27... Bxg2 {[%clk 0:02:05.3]}
28. Nd6+ {[%clk 0:01:21]} 28... Ke6 {[%clk 0:01:55.8]} 29. Kxg2 {[%clk
0:01:21.1]} 29... Qc6+ {[%clk 0:01:56]} 30. Qf3 {[%clk 0:01:22.4]} 30... Rh2+
{[%clk 0:01:56.1]} 31. Kxh2 {[%clk 0:01:04.7]} 31... Qxf3 {[%clk 0:01:54.2]} 32.
Bh4 {[%clk 0:01:06.6]} 32... Qg4 {[%clk 0:01:51.4]} 33. Bg3 {[%clk 0:01:05.7]}
33... Rh8+ {[%clk 0:01:52.2]} 34. Kg2 {[%clk 0:01:07.1]} 34... Qh3+ {[%clk
0:01:50.5]} 35. Kf2 {[%clk 0:01:07.9]} 35... Qg4 {[%clk 0:01:51.3]} 36. Nb7
{[%clk 0:01:02]} 36... Rh3 {[%clk 0:01:48.3]} 37. Nc5+ {[%clk 0:01:01.8]} 37...
Kf7 {[%clk 0:01:45.7]} 38. e6+ {[%clk 0:01:02.9]} 38... Kg8 {[%clk 0:01:45.5]}
39. Rg1 {[%clk 0:01:04.2]} 39... Bf6 {[%clk 0:01:45.5]} 40. Nd7 {[%clk
0:00:19.5]} 40... Bh4 {[%clk 0:01:39.9]} 41. Bxh4 {[%clk 0:00:18.4]} 41... Qf3#
{[%clk 0:01:39.7]} 0-1

[Event "*** Biggest EVER Titled Tuesday"]
[Site "Chess.com"]
[Date "2018.04.17"]
[Round "1"]
[White "Tash_Boy"]
[Black "mjray79"]
[Result "1-0"]
[WhiteElo "2532"]
[BlackElo "2117"]
[TimeControl "180+2"]
[EndTime "13:07:10 PDT"]
[Termination "Tash_Boy won by checkmate"]

1. e4 {[%clk 0:03:01.5]} 1... c5 {[%clk 0:03:00.2]} 2. Nf3 {[%clk 0:03:02.2]}
2... d6 {[%clk 0:03:00]} 3. d4 {[%clk 0:03:02.8]} 3... cxd4 {[%clk 0:03:00.3]}
4. Nxd4 {[%clk 0:03:04.7]} 4... Nf6 {[%clk 0:03:00.4]} 5. Nc3 {[%clk 0:03:05.5]}
5... g6 {[%clk 0:02:56.6]} 6. Be3 {[%clk 0:03:06]} 6... Bg7 {[%clk 0:02:54.7]}
7. f3 {[%clk 0:03:07.1]} 7... O-O {[%clk 0:02:53.7]} 8. Qd2 {[%clk 0:03:07.7]}
8... Nc6 {[%clk 0:02:50.2]} 9. g4 {[%clk 0:03:09]} 9... Be6 {[%clk 0:02:44.7]}
10. Nxe6 {[%clk 0:02:23.9]} 10... fxe6 {[%clk 0:02:41.2]} 11. O-O-O {[%clk
0:02:23.1]} 11... d5 {[%clk 0:02:31.1]} 12. exd5 {[%clk 0:02:01.5]} 12... exd5
{[%clk 0:02:30.5]} 13. Nxd5 {[%clk 0:02:03.4]} 13... Nxd5 {[%clk 0:02:22.2]} 14.
Qxd5+ {[%clk 0:02:03.4]} 14... Qxd5 {[%clk 0:02:20.8]} 15. Rxd5 {[%clk
0:02:05.3]} 15... Rxf3 {[%clk 0:02:21]} 16. Bc4 {[%clk 0:02:06]} 16... e6 {[%clk
0:02:09.9]} 17. Rd3 {[%clk 0:01:54]} 17... Ne5 {[%clk 0:01:57.1]} 18. Bxe6+
{[%clk 0:01:53]} 18... Kh8 {[%clk 0:01:56.7]} 19. Rb3 {[%clk 0:01:33.2]} 19...
Re8 {[%clk 0:01:54.7]} 20. Bd4 {[%clk 0:01:06.8]} 20... Rxe6 {[%clk 0:01:46.5]}
21. Bxe5 {[%clk 0:01:06.9]} 21... Rxb3 {[%clk 0:01:41.4]} 22. Bxg7+ {[%clk
0:01:08.8]} 22... Kxg7 {[%clk 0:01:41.1]} 23. axb3 {[%clk 0:01:09.7]} 23... Re4
{[%clk 0:01:41.7]} 24. Rg1 {[%clk 0:01:08.1]} 24... Kf6 {[%clk 0:01:41.6]} 25.
Kd2 {[%clk 0:01:08.8]} 25... Kg5 {[%clk 0:01:41.5]} 26. Kd3 {[%clk 0:01:09.4]}
26... Rxg4 {[%clk 0:01:40.7]} 27. Rxg4+ {[%clk 0:00:47.2]} 27... Kxg4 {[%clk
0:01:41.3]} 28. b4 {[%clk 0:00:47.7]} 28... Kf3 {[%clk 0:01:34.8]} 29. c4 {[%clk
0:00:46.7]} 29... h5 {[%clk 0:01:31.9]} 30. b5 {[%clk 0:00:46.3]} 30... g5
{[%clk 0:01:31.5]} 31. c5 {[%clk 0:00:47]} 31... h4 {[%clk 0:01:31.4]} 32. c6
{[%clk 0:00:47.9]} 32... bxc6 {[%clk 0:01:31.6]} 33. bxc6 {[%clk 0:00:49.5]}
33... g4 {[%clk 0:01:31.7]} 34. c7 {[%clk 0:00:50.1]} 34... g3 {[%clk
0:01:30.8]} 35. c8=Q {[%clk 0:00:49.1]} 35... Kg2 {[%clk 0:01:17.2]} 36. hxg3
{[%clk 0:00:49]} 36... Kxg3 {[%clk 0:01:15]} 37. Ke3 {[%clk 0:00:48.3]} 37... h3
{[%clk 0:01:14.7]} 38. Qg8+ {[%clk 0:00:48.1]} 38... Kh2 {[%clk 0:01:14.2]} 39.
Kf2 {[%clk 0:00:48.8]} 39... a5 {[%clk 0:01:13.5]} 40. Qg1# {[%clk 0:00:50.7]}
1-0

[Event "*** Biggest EVER Titled Tuesday"]
[Site "Chess.com"]
[Date "2018.04.17"]
[Round "1"]
[White "Makalexa"]
[Black "belisarius64"]
[Result "0-1"]
[WhiteElo "2130"]
[BlackElo "2508"]
[TimeControl "180+2"]
[EndTime "13:07:17 PDT"]
[Termination "belisarius64 won by resignation"]

1. e4 {[%clk 0:03:00.2]} 1... c5 {[%clk 0:02:57.2]} 2. Nf3 {[%clk 0:02:58.9]}
2... e6 {[%clk 0:02:58]} 3. d4 {[%clk 0:02:59]} 3... cxd4 {[%clk 0:02:59.9]} 4.
Nxd4 {[%clk 0:03:00]} 4... a6 {[%clk 0:03:01.4]} 5. Bd3 {[%clk 0:03:00.6]} 5...
Bc5 {[%clk 0:03:00.7]} 6. Nb3 {[%clk 0:03:00.3]} 6... Ba7 {[%clk 0:03:01.3]} 7.
Qe2 {[%clk 0:02:59.2]} 7... Nc6 {[%clk 0:03:01.3]} 8. Be3 {[%clk 0:02:59.5]}
8... Bxe3 {[%clk 0:03:02.4]} 9. Qxe3 {[%clk 0:03:00.2]} 9... Nf6 {[%clk
0:03:01.7]} 10. N1d2 {[%clk 0:02:59.5]} 10... O-O {[%clk 0:03:02.5]} 11. O-O-O
{[%clk 0:02:57.6]} 11... b5 {[%clk 0:03:02.7]} 12. g4 {[%clk 0:02:56.1]} 12...
Nxg4 {[%clk 0:03:02.1]} 13. Qg3 {[%clk 0:02:54.1]} 13... Nge5 {[%clk 0:02:50.1]}
14. Rhg1 {[%clk 0:02:35.4]} 14... g6 {[%clk 0:02:50.6]} 15. f4 {[%clk
0:02:31.5]} 15... Nxd3+ {[%clk 0:02:51.2]} 16. cxd3 {[%clk 0:02:33.2]} 16... Bb7
{[%clk 0:02:51.1]} 17. Kb1 {[%clk 0:02:33.3]} 17... d5 {[%clk 0:02:47.3]} 18. f5
{[%clk 0:02:32.1]} 18... dxe4 {[%clk 0:02:39.5]} 19. dxe4 {[%clk 0:02:28.4]}
19... exf5 {[%clk 0:02:35.5]} 20. exf5 {[%clk 0:02:02.7]} 20... Qf6 {[%clk
0:02:36.2]} 21. Rdf1 {[%clk 0:01:59.4]} 21... Kh8 {[%clk 0:02:29.3]} 22. fxg6
{[%clk 0:01:57.3]} 22... Qxg6+ {[%clk 0:02:29.8]} 23. Qxg6 {[%clk 0:01:27.7]}
23... fxg6 {[%clk 0:02:28.6]} 24. Nc5 {[%clk 0:01:25.3]} 24... Rxf1+ {[%clk
0:01:57.6]} 25. Rxf1 {[%clk 0:01:27]} 25... Na5 {[%clk 0:01:58.8]} 26. b4 {[%clk
0:01:14.6]} 26... Rc8 {[%clk 0:01:59.8]} 27. Rc1 {[%clk 0:00:47.8]} 27... Rd8
{[%clk 0:01:18]} 28. Rc2 {[%clk 0:00:45.5]} 28... Bc8 {[%clk 0:01:06]} 29. bxa5
{[%clk 0:00:45]} 29... Bf5 {[%clk 0:01:07.1]} 30. Kc1 {[%clk 0:00:45.4]} 30...
Bxc2 {[%clk 0:01:07.7]} 31. Kxc2 {[%clk 0:00:46.2]} 31... Rd4 {[%clk 0:01:07]}
32. Nxa6 {[%clk 0:00:43.7]} 32... Ra4 {[%clk 0:01:07.1]} 33. Nb3 {[%clk
0:00:43.5]} 33... Rxa2+ {[%clk 0:01:07.6]} 34. Kd3 {[%clk 0:00:44.3]} 34... Rxh2
{[%clk 0:01:08.7]} 35. Nb4 {[%clk 0:00:42.4]} 35... Rh3+ {[%clk 0:01:08.4]} 36.
Kc2 {[%clk 0:00:42.9]} 36... Rh4 {[%clk 0:01:05.1]} 37. Kc3 {[%clk 0:00:35.4]}
37... Rc4+ {[%clk 0:01:05.8]} 38. Kb2 {[%clk 0:00:35.3]} 38... Rxb4 {[%clk
0:01:07.1]} 0-1

[Event "*** Biggest EVER Titled Tuesday"]
[Site "Chess.com"]
[Date "2018.04.17"]
[Round "1"]
[White "Iball95"]
[Black "BergenChessAcademy"]
[Result "1-0"]
[WhiteElo "2541"]
[BlackElo "2191"]
[TimeControl "180+2"]
[EndTime "13:07:26 PDT"]
[Termination "Iball95 won by resignation"]

1. d4 {[%clk 0:03:00.2]} 1... Nf6 {[%clk 0:02:58.4]} 2. Bf4 {[%clk 0:03:00.4]}
2... e6 {[%clk 0:02:48.9]} 3. e3 {[%clk 0:03:01.3]} 3... c5 {[%clk 0:02:43.7]}
4. c3 {[%clk 0:02:58.7]} 4... b6 {[%clk 0:02:43.9]} 5. Nf3 {[%clk 0:02:56]} 5...
Bb7 {[%clk 0:02:42.6]} 6. Nbd2 {[%clk 0:02:56.9]} 6... Be7 {[%clk 0:02:43.1]} 7.
Bd3 {[%clk 0:02:58.2]} 7... Nc6 {[%clk 0:02:32.8]} 8. h3 {[%clk 0:02:58.6]} 8...
O-O {[%clk 0:02:23.1]} 9. O-O {[%clk 0:02:59.1]} 9... Rc8 {[%clk 0:02:18.1]} 10.
Rc1 {[%clk 0:02:59.2]} 10... d6 {[%clk 0:02:17.4]} 11. Bh2 {[%clk 0:02:59.3]}
11... Re8 {[%clk 0:02:13.5]} 12. a3 {[%clk 0:02:55.3]} 12... Bf8 {[%clk
0:02:03.9]} 13. Qc2 {[%clk 0:02:51.9]} 13... g6 {[%clk 0:02:02.3]} 14. Qb1
{[%clk 0:02:49.5]} 14... Bg7 {[%clk 0:02:01.8]} 15. Rfd1 {[%clk 0:02:48.8]}
15... Ne7 {[%clk 0:01:56.3]} 16. Nc4 {[%clk 0:02:47.7]} 16... Rc6 {[%clk
0:01:42.7]} 17. Bf1 {[%clk 0:02:35]} 17... b5 {[%clk 0:01:34.5]} 18. Ncd2 {[%clk
0:02:20.1]} 18... c4 {[%clk 0:01:35.1]} 19. a4 {[%clk 0:02:19.2]} 19... a6
{[%clk 0:01:35.1]} 20. axb5 {[%clk 0:02:17.5]} 20... axb5 {[%clk 0:01:35.7]} 21.
b3 {[%clk 0:02:18.9]} 21... Rb6 {[%clk 0:01:19.8]} 22. Qc2 {[%clk 0:02:16.1]}
22... d5 {[%clk 0:01:18.7]} 23. Ra1 {[%clk 0:02:14.5]} 23... Nf5 {[%clk
0:01:18.6]} 24. b4 {[%clk 0:02:10.1]} 24... Nd6 {[%clk 0:01:18.2]} 25. Ra5
{[%clk 0:02:08.5]} 25... Bc6 {[%clk 0:01:17.7]} 26. Rda1 {[%clk 0:02:07.9]}
26... Rb7 {[%clk 0:01:03.5]} 27. Ne5 {[%clk 0:02:06.5]} 27... Bd7 {[%clk
0:00:59.4]} 28. Nxg6 {[%clk 0:02:03.6]} 28... Nfe4 {[%clk 0:00:44]} 29. Nxe4
{[%clk 0:02:03.6]} 29... Nxe4 {[%clk 0:00:42.9]} 30. Ne5 {[%clk 0:02:04.7]}
30... Bxe5 {[%clk 0:00:33.4]} 31. Bxe5 {[%clk 0:02:06.6]} 31... f6 {[%clk
0:00:34.5]} 32. Bh2 {[%clk 0:02:06]} 32... Kh8 {[%clk 0:00:33.8]} 33. f3 {[%clk
0:02:06.1]} 33... Ng5 {[%clk 0:00:33.9]} 34. Ra7 {[%clk 0:02:02.6]} 34... Bc6
{[%clk 0:00:31.9]} 35. Rxb7 {[%clk 0:01:51.5]} 35... Bxb7 {[%clk 0:00:32.1]} 36.
Ra7 {[%clk 0:01:53.4]} 36... Qb6 {[%clk 0:00:29.6]} 37. Qa2 {[%clk 0:01:54.6]}
37... Rg8 {[%clk 0:00:28]} 38. Kf2 {[%clk 0:01:56]} 38... Qc6 {[%clk 0:00:25.3]}
39. Qa5 {[%clk 0:01:53.8]} 39... Ra8 {[%clk 0:00:21.5]} 40. Rxa8+ {[%clk
0:01:50.8]} 40... Bxa8 {[%clk 0:00:22.3]} 41. Qd8+ {[%clk 0:01:45.1]} 41... Kg7
{[%clk 0:00:22.9]} 42. Bd6 {[%clk 0:01:40.8]} 42... Nf7 {[%clk 0:00:23.4]} 43.
Qf8+ {[%clk 0:01:41.8]} 43... Kg6 {[%clk 0:00:24.4]} 44. Qg8+ {[%clk 0:01:43.1]}
44... Kh6 {[%clk 0:00:17.4]} 45. Bf8+ {[%clk 0:01:43.7]} 1-0